bitfinex-derivatives/quotes_BTCF0:USTF0_20250517
["timestamp","ask_amount","ask_price","bid_price","bid_amount"]
[1747490062996,0.05939218,102790.0,102780.0,2.09679638]
[1747490063295,0.05939218,102790.0,102780.0,1.89949064]
[1747490063593,0.05939218,102790.0,102780.0,2.09679638]
[1747490064193,0.05939218,102790.0,102780.0,2.39683554]
[1747490064394,0.05939218,102790.0,102780.0,2.16239554]
[1747490064694,0.05939218,102790.0,102780.0,2.39679554]
[1747490070798,0.05939218,102790.0,102780.0,1.73595638]
[1747490070994,0.05939218,102790.0,102780.0,2.39280213]
[1747490071787,0.0341,102800.0,102790.0,0.1945045]
[1747490071992,0.0646,102800.0,102790.0,1.19561024]
[1747490072300,0.09335239,102810.0,102800.0,0.1944856]
[1747490072500,0.15595239,102810.0,102800.0,1.31411134]
[1747490073193,0.15595239,102810.0,102800.0,1.49411134]
[1747490073400,0.0953,102810.0,102800.0,1.49411134]
[1747490073795,0.0993,102810.0,102800.0,1.49511134]
[1747490074104,0.0993,102810.0,102800.0,1.49507134]
[1747490075093,0.1033,102810.0,102800.0,1.49607134]
[1747490075294,0.1033,102810.0,102800.0,1.54548881]
[1747490075896,0.1033,102810.0,102800.0,1.34818307]
[1747490076100,0.1033,102810.0,102800.0,1.55093097]
[1747490077895,0.2977667,102810.0,102800.0,1.55093097]
[1747490078496,0.2977667,102810.0,102800.0,1.91173097]
[1747490078698,0.2977667,102810.0,102800.0,1.95726359]
[1747490078897,0.2977667,102810.0,102800.0,1.82751072]
[1747490079098,0.2977667,102810.0,102800.0,1.35863072]
[1747490079407,0.2977667,102810.0,102800.0,1.82695072]
[1747490079609,0.2977667,102810.0,102800.0,1.35863072]
[1747490079906,0.2977667,102810.0,102800.0,1.82695072]
[1747490081309,0.2977667,102810.0,102800.0,1.32793072]
[1747490081805,0.2977667,102810.0,102800.0,1.79621072]
[1747490082012,0.35841909,102810.0,102800.0,1.7506781]
[1747490082304,0.45707196,102810.0,102800.0,0.28214523]
[1747490082500,0.35841909,102810.0,102800.0,0.75042523]
[1747490083295,0.45707196,102810.0,102800.0,0.51634523]
[1747490083592,0.45707196,102810.0,102800.0,0.75038523]
[1747490085205,0.54805055,102810.0,102800.0,0.75038523]
[1747490086005,0.54805055,102810.0,102800.0,0.32185963]
[1747490086201,0.90885055,102810.0,102800.0,0.25134523]
[1747490087104,1.08885055,102810.0,102800.0,0.05685963]
[1747490087310,1.08885055,102810.0,102800.0,0.25134523]
[1747490087697,1.02819816,102810.0,102800.0,0.25134523]
[1747490087901,1.12547016,102810.0,102800.0,0.25134523]
[1747490088103,0.94547016,102810.0,102800.0,0.25134523]
[1747490090310,0.97577156,102810.0,102800.0,0.25134523]
[1747490090500,0.87849956,102810.0,102800.0,0.25134523]
[1747490091103,0.87849956,102810.0,102800.0,0.28254523]
[1747490091915,0.87849956,102810.0,102800.0,0.25134523]
[1747490092305,0.87849956,102810.0,102800.0,0.28254523]
[1747490092816,0.87849956,102810.0,102800.0,0.27027739]
[1747490094616,0.87849956,102810.0,102800.0,0.04459179]
[1747490094811,0.87849956,102810.0,102800.0,0.23907739]
[1747490095116,0.87849956,102810.0,102800.0,0.04459179]
[1747490095319,0.87849956,102810.0,102800.0,0.07729179]
[1747490095507,0.97715243,102810.0,102800.0,0.04459179]
[1747490095709,0.87849956,102810.0,102800.0,0.04459179]
[1747490096818,0.87849956,102810.0,102800.0,0.07769179]
[1747490097521,0.87849956,102810.0,102790.0,0.81113929]
[1747490097522,0.1944856,102800.0,102790.0,0.05136309]
[1747490097725,0.84619134,102800.0,102790.0,0.08446309]
[1747490098617,0.96947133,102800.0,102790.0,0.27996759]
[1747490098921,0.97147133,102800.0,102790.0,0.27996759]
[1747490100321,0.97147133,102800.0,102790.0,0.23055012]
[1747490100516,0.61067133,102800.0,102790.0,0.26185012]
[1747490100717,0.77416559,102800.0,102790.0,0.26185012]
[1747490100912,0.38186559,102800.0,102790.0,0.29445012]
[1747490101108,0.09479252,102800.0,102790.0,1.16814299]
[1747490103220,0.09479252,102800.0,102790.0,1.11890759]
[1747490103415,0.09479252,102800.0,102790.0,1.26906219]
[1747490103617,0.004,102800.0,102790.0,1.31459481]
[1747490103815,0.1984856,102800.0,102790.0,1.31459481]
[1747490104428,0.004,102800.0,102790.0,1.31459481]
[1747490104631,0.1984856,102800.0,102790.0,1.16988237]
[1747490105017,0.1984856,102800.0,102790.0,0.93564237]
[1747490105218,0.1984856,102800.0,102790.0,1.16932237]
[1747490106329,0.1984856,102800.0,102790.0,1.31947697]
[1747490106626,0.1984856,102800.0,102790.0,1.2700595]
[1747490107730,0.004,102800.0,102790.0,1.2700595]
[1747490110628,0.004,102800.0,102790.0,1.5036195]
[1747490111124,0.004,102800.0,102790.0,1.56438034]
[1747490114538,0.004,102800.0,102790.0,1.91478034]
[1747490115637,0.004,102800.0,102790.0,2.04061626]
[1747490116939,0.004,102800.0,102790.0,1.80705626]
[1747490117143,0.004,102800.0,102790.0,2.04049626]
[1747490117341,0.004,102800.0,102790.0,2.04045626]
[1747490118141,0.004,102800.0,102790.0,2.40125626]
[1747490119742,0.004,102800.0,102790.0,2.34049542]
[1747490120243,0.004,102800.0,102790.0,2.2146595]
[1747490125346,0.004,102800.0,102790.0,1.9812195]
[1747490125541,0.004,102800.0,102790.0,2.27642387]
[1747490126745,0.1984856,102800.0,102790.0,1.80950387]
[1747490126947,0.1984856,102800.0,102790.0,2.27638387]
[1747490127244,0.2938856,102800.0,102790.0,2.2248018]
[1747490127947,0.2938856,102800.0,102790.0,2.12622927]
[1747490128152,0.39245813,102800.0,102790.0,1.65934927]
[1747490128352,0.39245813,102800.0,102790.0,2.09362927]
[1747490128540,0.39245813,102800.0,102790.0,2.09358927]
[1747490129047,0.39245813,102800.0,102790.0,1.73278927]
[1747490129254,0.2938856,102800.0,102790.0,1.73278927]
[1747490129545,0.2938856,102800.0,102790.0,1.79696251]
[1747490130241,0.44521355,102800.0,102790.0,1.79696251]
[1747490131147,0.59544151,102800.0,102790.0,1.53246251]
[1747490131342,0.59544151,102800.0,102790.0,1.76562251]
[1747490131541,0.44521355,102800.0,102790.0,1.76562251]
[1747490132245,0.44521355,102800.0,102790.0,1.58562251]
[1747490132447,0.44521355,102800.0,102790.0,1.23522251]
[1747490132847,0.59544151,102800.0,102790.0,0.95652989]
[1747490133047,0.59544151,102800.0,102790.0,1.18964989]
[1747490133547,0.59544151,102800.0,102790.0,0.95652989]
[1747490133850,0.95624151,102800.0,102790.0,0.56262989]
[1747490134036,0.95624151,102800.0,102790.0,0.59382989]
[1747490134442,0.95624151,102800.0,102790.0,0.56262989]
[1747490134844,0.95624151,102800.0,102790.0,0.59382989]
[1747490135451,0.95624151,102800.0,102790.0,0.36812539]
[1747490135655,0.92619355,102800.0,102790.0,0.56262989]
[1747490137450,0.92619355,102800.0,102790.0,0.32898989]
[1747490137751,0.56539355,102800.0,102790.0,0.32898989]
[1747490137944,0.92619355,102800.0,102790.0,0.13448539]
[1747490138151,1.10619355,102800.0,102790.0,0.13448539]
[1747490138343,1.10619355,102800.0,102790.0,0.00838778]
[1747490139154,0.92619355,102800.0,102790.0,0.00838778]
[1747490140052,1.02347355,102800.0,102790.0,0.00838778]
[1747490140845,0.90219356,102800.0,102790.0,0.00838778]
[1747490141957,1.15219356,102800.0,102790.0,0.00838778]
[1747490142153,0.90219356,102800.0,102790.0,0.00838778]
[1747490142354,1.15219356,102800.0,102790.0,0.00838778]
[1747490142957,1.30375608,102800.0,102790.0,0.00838778]
[1747490143358,1.59375608,102800.0,102790.0,0.00838778]
[1747490143658,1.82687608,102800.0,102790.0,0.00838778]
[1747490143854,0.34475136,102780.0,102770.0,0.31341684]
[1747490144158,0.70555136,102780.0,102770.0,0.08033684]
[1747490144348,1.16215136,102780.0,102770.0,0.04953684]
[1747490145159,1.41067932,102780.0,102770.0,0.05153684]
[1747490145350,1.26045136,102780.0,102770.0,0.05253684]
[1747490145951,1.38110796,102780.0,102770.0,0.05253684]
[1747490146249,1.38010796,102780.0,102770.0,0.05053684]
[1747490146559,1.38310796,102780.0,102770.0,0.05153684]
[1747490146759,1.38310796,102780.0,102770.0,0.002]
[1747490147059,1.38310796,102780.0,102770.0,0.0352]
[1747490147260,1.61622796,102780.0,102770.0,0.0352]
[1747490147559,1.61922796,102780.0,102770.0,0.0342]
[1747490147961,0.89762796,102780.0,102770.0,0.0342]
[1747490148154,1.61922796,102780.0,102770.0,0.0342]
[1747490150062,1.76945592,102780.0,102770.0,0.0342]
[1747490150262,1.76945592,102780.0,102770.0,0.03964216]
[1747490150759,1.76945592,102780.0,102770.0,0.00644216]
[1747490151363,1.80945592,102780.0,102770.0,0.00644216]
[1747490152274,2.09945592,102780.0,102770.0,0.00644216]
[1747490153059,2.27945592,102780.0,102770.0,0.00644216]
[1747490154162,2.09945592,102780.0,102770.0,0.00644216]
[1747490155149,2.29425995,102780.0,102770.0,0.00644216]
[1747490155350,2.34973655,102780.0,102750.0,0.00340573]
[1747490155654,0.1945802,102750.0,102740.0,0.04204349]
[1747490155855,0.70560816,102750.0,102740.0,0.04204349]
[1747490156054,0.70560816,102750.0,102740.0,0.22204349]
[1747490156055,0.80190816,102750.0,102740.0,0.22204349]
[1747490157256,0.80190816,102750.0,102740.0,0.04204349]
[1747490158161,0.95313612,102750.0,102740.0,0.04404349]
[1747490158564,1.10355052,102750.0,102740.0,0.07554349]
[1747490158859,1.11353615,102750.0,102740.0,0.07554349]
[1747490159060,1.11353615,102750.0,102740.0,0.07854349]
[1747490159962,0.96330819,102750.0,102740.0,0.07854349]
[1747490160150,0.96330819,102750.0,102740.0,0.27314259]
[1747490160555,0.96330819,102750.0,102740.0,0.07854349]
[1747490162561,1.11353615,102750.0,102740.0,0.07854349]
[1747490163459,1.28593039,102750.0,102740.0,0.07854349]
[1747490164368,1.28593039,102750.0,102740.0,0.08398565]
[1747490165467,1.28593039,102750.0,102740.0,0.05198565]
[1747490165661,1.31593039,102750.0,102740.0,0.05198565]
[1747490166663,1.31493039,102750.0,102740.0,0.04998565]
[1747490166865,1.31593039,102750.0,102740.0,0.05098565]
[1747490168177,1.31693039,102750.0,102740.0,0.04798565]
[1747490168767,1.34733835,102750.0,102740.0,0.04798565]
[1747490168971,0.1945994,102740.0,102730.0,0.03117338]
[1747490169163,1.03364736,102740.0,102730.0,0.03446082]
[1747490169364,1.09364736,102740.0,102730.0,0.03446082]
[1747490169969,1.09364736,102740.0,102730.0,0.06606082]
[1747490170164,1.09464736,102740.0,102730.0,0.06706082]
[1747490170770,1.09464736,102740.0,102730.0,0.06806082]
[1747490172168,1.15530396,102740.0,102730.0,0.06806082]
[1747490172376,1.21530396,102740.0,102730.0,0.06806082]
[1747490173868,1.21530396,102740.0,102730.0,0.09996082]
[1747490174176,1.21530396,102740.0,102730.0,0.27996082]
[1747490174778,1.21530396,102740.0,102730.0,0.24806082]
[1747490175272,1.21530396,102740.0,102730.0,0.06806082]
[1747490175273,1.26252562,102740.0,102730.0,0.06806082]
[1747490176073,1.49484562,102740.0,102730.0,0.06806082]
[1747490176267,1.26232562,102740.0,102730.0,0.06806082]
[1747490179777,1.26232562,102740.0,102730.0,0.07350298]
[1747490180481,1.30105043,102740.0,102730.0,0.04190298]
[1747490180692,1.62105043,102740.0,102730.0,0.04190298]
[1747490180976,1.62105043,102740.0,102720.0,0.2421]
[1747490180977,0.1946186,102730.0,102720.0,0.2421]
[1747490181183,1.05150341,102730.0,102720.0,0.2421]
[1747490181375,1.10324132,102730.0,102720.0,0.2421]
[1747490181875,1.22389792,102730.0,102720.0,0.2421]
[1747490182471,1.22389792,102730.0,102720.0,0.2102]
[1747490182667,1.22489792,102730.0,102720.0,0.2102]
[1747490182877,0.1946376,102720.0,102710.0,0.03404714]
[1747490183068,1.00016304,102720.0,102710.0,0.25890374]
[1747490183467,1.00016304,102720.0,102710.0,0.06424714]
[1747490184071,1.0617688,102720.0,102710.0,0.27564714]
[1747490184374,1.0617688,102720.0,102710.0,0.27764714]
[1747490184572,1.21223152,102720.0,102710.0,0.27764714]
[1747490184878,1.0617688,102720.0,102710.0,0.27764714]
[1747490185178,1.2938888,102720.0,102710.0,0.27764714]
[1747490186473,1.35393964,102720.0,102710.0,0.27764714]
[1747490187474,1.35393964,102720.0,102710.0,0.24554714]
[1747490188484,1.35393964,102720.0,102710.0,0.21534714]
[1747490188679,1.67867965,102720.0,102710.0,0.21534714]
[1747490188983,1.67867965,102720.0,102710.0,0.18394714]
[1747490189169,0.1946566,102710.0,102700.0,0.22073684]
[1747490189484,1.09571932,102710.0,102700.0,0.22073684]
[1747490190074,1.09571932,102710.0,102700.0,0.40073684]
[1747490190275,1.03571932,102710.0,102700.0,0.33573684]
[1747490190486,1.34571932,102710.0,102700.0,0.33573684]
[1747490190690,1.34571932,102710.0,102700.0,0.33773684]
[1747490190991,1.46637592,102710.0,102700.0,0.33773684]
[1747490191199,1.46637592,102710.0,102700.0,0.15773684]
[1747490191492,1.26637592,102710.0,102700.0,0.1737]
[1747490191792,1.26637592,102710.0,102700.0,0.2064]
[1747490191980,0.1946755,102700.0,102690.0,0.0832106]
[1747490192285,0.81351592,102700.0,102690.0,0.2632106]
[1747490192488,0.86351592,102700.0,102690.0,0.2632106]
[1747490193183,0.86351592,102700.0,102690.0,0.2642106]
[1747490193384,0.86451592,102700.0,102690.0,0.2642106]
[1747490193776,0.86451592,102700.0,102690.0,0.26757579]
[1747490194283,1.07550121,102700.0,102690.0,0.26757579]
[1747490194482,1.02550121,102700.0,102690.0,0.26757579]
[1747490194791,1.02550121,102700.0,102690.0,0.27301795]
[1747490195191,1.02550121,102700.0,102690.0,0.33471795]
[1747490196289,0.87503849,102700.0,102690.0,0.33471795]
[1747490196489,0.93517252,102700.0,102690.0,0.33471795]
[1747490196684,0.93517252,102700.0,102690.0,0.28518111]
[1747490196889,1.0266298,102700.0,102690.0,0.28518111]
[1747490197092,1.17709252,102700.0,102690.0,0.28518111]
[1747490197585,1.16709252,102700.0,102690.0,0.28518111]
[1747490198493,1.17709252,102700.0,102690.0,0.28518111]
[1747490199092,0.94517252,102700.0,102690.0,0.28518111]
[1747490199694,0.93517252,102700.0,102690.0,0.28518111]
[1747490200695,1.16709252,102700.0,102690.0,0.28518111]
[1747490201295,0.7847098,102700.0,102690.0,0.28518111]
[1747490201491,1.21422216,102700.0,102690.0,0.28518111]
[1747490202096,1.30453738,102700.0,102690.0,0.28518111]
[1747490203308,1.10694502,102700.0,102690.0,0.28518111]
[1747490203490,1.30453738,102700.0,102690.0,0.25508111]
[1747490204600,1.30453738,102700.0,102690.0,0.28638111]
[1747490204889,1.18388078,102700.0,102690.0,0.28638111]
[1747490205795,0.98628842,102700.0,102690.0,0.28638111]
[1747490206100,1.18388078,102700.0,102690.0,0.28638111]
[1747490208308,1.21422216,102700.0,102690.0,0.28638111]
[1747490209201,1.0166298,102700.0,102690.0,0.28638111]
[1747490209499,1.21422216,102700.0,102690.0,0.28638111]
[1747490211307,1.25422216,102700.0,102690.0,0.28638111]
[1747490211506,1.25422216,102700.0,102690.0,0.25508111]
[1747490211800,1.25422216,102700.0,102690.0,0.19078111]
[1747490212202,1.64301834,102700.0,102690.0,0.12394238]
[1747490212403,1.54422216,102700.0,102690.0,0.12394238]
[1747490212599,1.32422216,102700.0,102690.0,0.12394238]
[1747490213292,1.3582298,102700.0,102690.0,0.21984238]
[1747490213492,0.8947098,102700.0,102690.0,0.21984238]
[1747490213698,0.7522096,102700.0,102690.0,0.21984238]
[1747490213899,0.85100578,102700.0,102690.0,0.21984238]
[1747490214109,0.85200578,102700.0,102690.0,0.21884238]
[1747490215111,0.98110196,102700.0,102690.0,0.21884238]
[1747490215512,1.00110196,102700.0,102690.0,0.21884238]
[1747490215804,0.78164918,102700.0,102690.0,0.21884238]
[1747490216010,0.682853,102700.0,102690.0,0.21884238]
[1747490216199,0.78164918,102700.0,102690.0,0.21884238]
[1747490218909,0.78164918,102700.0,102690.0,0.25604418]
[1747490220610,0.88044536,102700.0,102690.0,0.25604418]
[1747490221411,0.78164918,102700.0,102690.0,0.25604418]
[1747490222513,0.88044536,102700.0,102690.0,0.25604418]
[1747490223312,0.78164918,102700.0,102690.0,0.25604418]
[1747490223912,0.78164918,102700.0,102690.0,0.45073848]
[1747490224113,0.73134918,102700.0,102690.0,0.45073848]
[1747490224814,0.271753,102700.0,102690.0,0.81153848]
[1747490225014,0.271753,102700.0,102690.0,0.45073848]
[1747490225913,0.5221117,102700.0,102690.0,0.45073848]
[1747490227110,0.5221117,102700.0,102690.0,0.46307352]
[1747490228623,0.42331552,102700.0,102690.0,0.46307352]
[1747490229125,0.98170788,102700.0,102690.0,0.17247922]
[1747490229311,1.01180788,102700.0,102690.0,0.17247922]
[1747490229818,1.01180788,102700.0,102690.0,0.16911403]
[1747490230019,1.01180788,102700.0,102690.0,0.1724339]
[1747490231426,0.9130117,102700.0,102690.0,0.1724339]
[1747490231627,0.9130117,102700.0,102690.0,0.2039339]
[1747490231822,1.01180788,102700.0,102690.0,0.15439706]
[1747490233326,0.9130117,102700.0,102690.0,0.15439706]
[1747490234626,0.42331532,102700.0,102690.0,0.44788714]
[1747490234815,0.42331532,102700.0,102690.0,0.50878714]
[1747490235022,0.42331532,102700.0,102690.0,0.44721861]
[1747490235727,0.5221115,102700.0,102690.0,0.44721861]
[1747490237728,0.5421115,102700.0,102690.0,0.44721861]
[1747490237920,0.5721115,102700.0,102690.0,0.44721861]
[1747490238618,0.47331532,102700.0,102690.0,0.44721861]
[1747490238815,0.69281228,102700.0,102690.0,0.44721861]
[1747490239027,0.69281228,102700.0,102690.0,0.4595278]
[1747490241029,0.5940161,102700.0,102690.0,0.4595278]
[1747490241235,0.69281228,102700.0,102690.0,0.4595278]
[1747490241831,0.5608161,102700.0,102690.0,0.8203278]
[1747490242027,0.5108161,102700.0,102690.0,0.8203278]
[1747490242235,0.5108161,102700.0,102690.0,0.91912398]
[1747490242422,0.64271228,102700.0,102690.0,0.8203278]
[1747490242831,0.64271228,102700.0,102690.0,0.81700793]
[1747490243524,0.5439161,102700.0,102690.0,0.81700793]
[1747490243729,0.64271228,102700.0,102690.0,0.81700793]
[1747490244229,0.64271228,102700.0,102690.0,1.04784793]
[1747490244526,1.10230846,102700.0,102690.0,0.26151403]
[1747490244731,1.13430846,102700.0,102690.0,0.16911403]
[1747490245432,1.12551228,102700.0,102690.0,0.17241944]
[1747490245827,1.0267161,102700.0,102690.0,0.17241944]
[1747490246132,1.12551228,102700.0,102690.0,0.17241944]
[1747490247732,1.12551228,102700.0,102690.0,0.36711344]
[1747490248127,1.12551228,102700.0,102690.0,0.42761344]
[1747490248730,1.03551228,102700.0,102690.0,0.42761344]
[1747490249532,1.06551228,102700.0,102690.0,0.46483324]
[1747490250825,0.9667161,102700.0,102690.0,0.46483324]
[1747490251026,1.08551228,102700.0,102690.0,0.46483324]
[1747490251435,0.9867161,102700.0,102690.0,0.46483324]
[1747490251734,1.08551228,102700.0,102690.0,0.46483324]
[1747490252836,1.03551228,102700.0,102690.0,0.46483324]
[1747490253241,1.03551228,102700.0,102690.0,0.4152964]
[1747490253431,0.5759161,102700.0,102690.0,0.7760964]
[1747490253740,0.5759161,102700.0,102690.0,0.8081964]
[1747490253928,0.5759161,102700.0,102690.0,0.80489099]
[1747490254340,0.42435358,102700.0,102690.0,0.80489099]
[1747490255137,0.44435358,102700.0,102690.0,0.80489099]
[1747490255338,0.42435358,102700.0,102690.0,0.80489099]
[1747490256140,0.48435358,102700.0,102690.0,0.80489099]
[1747490256439,0.52314976,102700.0,102690.0,0.81720803]
[1747490257139,0.42435358,102700.0,102690.0,0.81720803]
[1747490257438,0.54314976,102700.0,102690.0,0.81720803]
[1747490257737,0.52314976,102700.0,102690.0,0.81720803]
[1747490258731,0.52314976,102700.0,102690.0,0.45640803]
[1747490259031,0.52314976,102700.0,102690.0,0.81720803]
[1747490259226,0.55314976,102700.0,102690.0,0.81720803]
[1747490259537,0.56314976,102700.0,102690.0,0.81720803]
[1747490259738,0.52314976,102700.0,102690.0,0.81720803]
[1747490260038,0.60314976,102700.0,102690.0,0.81720803]
[1747490260338,0.52314976,102700.0,102690.0,0.81720803]
[1747490260539,0.53314976,102700.0,102690.0,0.81720803]
[1747490263742,0.89394976,102700.0,102690.0,0.45640803]
[1747490264138,0.89394976,102700.0,102690.0,0.17235971]
[1747490264337,0.89394976,102700.0,102690.0,0.36705381]
[1747490265035,0.89394976,102700.0,102690.0,0.17235971]
[1747490265441,0.99274594,102700.0,102690.0,0.17235971]
[1747490265742,0.98274594,102700.0,102690.0,0.17235971]
[1747490265942,1.20274594,102700.0,102690.0,0.17235971]
[1747490266244,1.10394976,102700.0,102690.0,0.17235971]
[1747490266738,1.10394976,102700.0,102690.0,0.36705381]
[1747490268645,0.74314976,102700.0,102690.0,0.36705381]
[1747490268947,1.10394976,102700.0,102690.0,0.36705381]
[1747490269447,1.25551228,102700.0,102690.0,0.36705381]
[1747490269745,1.25551228,102700.0,102690.0,0.17235971]
[1747490273348,1.25551228,102700.0,102690.0,0.16005969]
[1747490273844,1.35430846,102700.0,102690.0,0.16005969]
[1747490274949,1.25551228,102700.0,102690.0,0.16005969]
[1747490277455,1.35430846,102700.0,102690.0,0.16005969]
[1747490277642,1.35430846,102700.0,102690.0,0.17235971]
[1747490277953,1.23360768,102700.0,102690.0,0.17235971]
[1747490278451,1.23360768,102700.0,102690.0,0.16911403]
[1747490279644,1.1348115,102700.0,102690.0,0.16911403]
[1747490281257,1.23360768,102700.0,102690.0,0.16911403]
[1747490281856,1.23360768,102700.0,102690.0,0.11957719]
[1747490283056,1.1348115,102700.0,102690.0,0.11957719]
[1747490283255,1.3646515,102700.0,102690.0,0.11957719]
[1747490283564,1.46344768,102700.0,102690.0,0.11957719]
[1747490284448,1.3646515,102700.0,102690.0,0.11957719]
[1747490284852,1.03601532,102700.0,102690.0,0.11957719]
[1747490285061,0.9148115,102700.0,102690.0,0.11957719]
[1747490285561,0.9148115,102700.0,102690.0,0.15679791]
[1747490286055,0.9148115,102700.0,102690.0,0.18959791]
[1747490286451,1.0048115,102700.0,102690.0,0.18959791]
[1747490287162,1.2648115,102700.0,102690.0,0.18959791]
[1747490287461,1.2648115,102700.0,102690.0,0.15679791]
[1747490288361,1.36360768,102700.0,102690.0,0.15679791]
[1747490288559,1.0748115,102700.0,102690.0,0.18819791]
[1747490290063,1.1248115,102700.0,102690.0,0.18819791]
[1747490290663,1.1448115,102700.0,102690.0,0.18819791]
[1747490293565,1.1448115,102700.0,102690.0,0.15679791]
[1747490294264,1.04601532,102700.0,102690.0,0.15679791]
[1747490294464,1.04601532,102700.0,102690.0,0.18799791]
[1747490294666,1.1448115,102700.0,102690.0,0.21819791]
[1747490294867,1.1445315,102700.0,102690.0,0.21819791]
[1747490295055,0.9148115,102700.0,102690.0,0.25039791]
[1747490295259,0.9148115,102700.0,102690.0,0.44509201]
[1747490295459,0.9148115,102700.0,102690.0,0.25039791]
[1747490295664,0.9148115,102700.0,102690.0,0.44509201]
[1747490296169,1.03546174,102700.0,102690.0,0.44509201]
[1747490296365,1.12546174,102700.0,102690.0,0.40787129]
[1747490296571,0.93666556,102700.0,102690.0,0.21317719]
[1747490296766,1.03546174,102700.0,102690.0,0.21317719]
[1747490296967,1.03546174,102700.0,102690.0,0.40787129]
[1747490297772,1.07546174,102700.0,102690.0,0.40787129]
[1747490298074,0.97666556,102700.0,102690.0,0.40787129]
[1747490298269,1.07546174,102700.0,102690.0,0.40787129]
[1747490298577,0.8828115,102700.0,102690.0,0.40787129]
[1747490299470,0.5220115,102700.0,102690.0,0.40787129]
[1747490299671,0.9133115,102700.0,102690.0,0.40787129]
[1747490300176,1.0133115,102700.0,102690.0,0.40787129]
[1747490300778,1.0133115,102700.0,102690.0,0.44509201]
[1747490300972,0.6525115,102700.0,102690.0,0.44509201]
[1747490301273,1.0133115,102700.0,102690.0,0.44509201]
[1747490304178,1.13398811,102700.0,102690.0,0.44509201]
[1747490304578,1.03519193,102700.0,102690.0,0.44509201]
[1747490304771,1.13398811,102700.0,102690.0,0.44509201]
[1747490307278,1.0133115,102700.0,102690.0,0.44509201]
[1747490308980,1.0133115,102700.0,102690.0,0.25039791]
[1747490309379,1.0133115,102700.0,102690.0,0.44509181]
[1747490309584,1.0133115,102700.0,102690.0,0.25039791]
[1747490311072,1.0133115,102700.0,102690.0,0.44509231]
[1747490311386,1.0133115,102700.0,102690.0,0.25039791]
[1747490312575,1.0133115,102700.0,102690.0,0.29993475]
[1747490313278,0.9133115,102700.0,102690.0,0.29993475]
[1747490313483,1.0833115,102700.0,102690.0,0.29993475]
[1747490314882,1.0833115,102700.0,102690.0,0.20633475]
[1747490315183,1.18210768,102700.0,102690.0,0.20633475]
[1747490315579,1.34210768,102700.0,102690.0,0.20633475]
[1747490316076,1.2433115,102700.0,102690.0,0.20633475]
[1747490316978,1.2433115,102700.0,102690.0,0.18749791]
[1747490320785,1.2433115,102700.0,102690.0,0.23703475]
[1747490321288,1.2433115,102700.0,102690.0,0.20633475]
[1747490324781,1.2433115,102700.0,102690.0,0.40102905]
[1747490324986,1.0633115,102700.0,102690.0,0.35149221]
[1747490325187,1.0633115,102700.0,102690.0,0.81108839]
[1747490325188,0.18546252,102700.0,102690.0,0.81108839]
[1747490325387,0.38013792,102700.0,102690.0,1.36524839]
[1747490326393,0.38013792,102700.0,102690.0,1.46404457]
[1747490326684,0.15356252,102700.0,102690.0,1.46262438]
[1747490326889,0.15356252,102700.0,102690.0,1.81142056]
[1747490327388,0.1527684,102700.0,102690.0,1.81142056]
[1747490328289,0.1527684,102700.0,102690.0,1.71262438]
[1747490329786,0.09246104,102700.0,102690.0,1.86344978]
[1747490329980,0.002,102700.0,102690.0,1.86344978]
[1747490330387,0.002,102700.0,102690.0,2.21384978]
[1747490330588,0.002,102700.0,102690.0,2.31264596]
[1747490331093,0.33502996,102710.0,102700.0,0.1946754]
[1747490331293,0.33502996,102710.0,102700.0,0.85046776]
[1747490331789,0.09170736,102710.0,102700.0,0.85046776]
[1747490331994,0.28636386,102710.0,102700.0,0.85046776]
[1747490332296,0.28936386,102710.0,102700.0,1.03146776]
[1747490332884,0.2290565,102710.0,102700.0,1.03146776]
[1747490333081,0.2310565,102710.0,102700.0,1.03146776]
[1747490334503,0.0364,102710.0,102700.0,1.03146776]
[1747490334989,0.2310564,102710.0,102700.0,1.03146776]
[1747490335190,0.0364,102710.0,102700.0,1.03146776]
[1747490337394,0.0364,102710.0,102700.0,1.0685642]
[1747490339997,0.0364,102710.0,102700.0,1.08092968]
[1747490345902,0.0364,102710.0,102700.0,1.08637184]
[1747490348989,0.0364,102710.0,102700.0,1.18516802]
[1747490349492,0.0364,102710.0,102700.0,1.08637184]
[1747490349693,0.0364,102710.0,102700.0,1.18516802]
[1747490350099,0.0364,102710.0,102700.0,1.23070064]
[1747490350292,0.0364,102710.0,102700.0,1.22927246]
[1747490350689,0.005,102710.0,102700.0,1.32806864]
[1747490350889,0.005,102710.0,102700.0,1.22927246]
[1747490351303,0.005,102710.0,102700.0,1.32806864]
[1747490352205,0.005,102710.0,102700.0,1.22927246]
[1747490352698,0.005,102710.0,102700.0,1.2900333]
[1747490353095,0.005,102710.0,102700.0,1.38882948]
[1747490354403,0.005,102710.0,102700.0,1.83922948]
[1747490354601,0.032,102720.0,102710.0,0.1946565]
[1747490354797,0.032,102720.0,102710.0,1.30340886]
[1747490355309,0.032,102720.0,102710.0,1.48340886]
[1747490355609,0.032,102720.0,102710.0,1.52894148]
[1747490355811,0.036,102720.0,102710.0,1.52894148]
[1747490356211,0.0665,102720.0,102710.0,1.52894148]
[1747490356605,0.0705,102720.0,102710.0,1.4311453]
[1747490356806,0.0705,102720.0,102710.0,1.4310653]
[1747490357208,0.0705,102720.0,102710.0,1.56047442]
[1747490357414,0.0705,102720.0,102710.0,1.57030119]
[1747490357916,0.0705,102720.0,102710.0,1.66909737]
[1747490359520,0.04,102720.0,102710.0,1.66909737]
[1747490359819,0.04,102720.0,102710.0,1.76645337]
[1747490360016,0.1811684,102730.0,102720.0,0.1946378]
[1747490360320,0.1811684,102730.0,102720.0,0.84763016]
[1747490361116,0.1851684,102730.0,102720.0,1.02863016]
[1747490361621,0.1881684,102730.0,102720.0,1.02863016]
[1747490362119,0.0374,102730.0,102720.0,1.02863016]
[1747490362319,0.0374,102730.0,102720.0,1.04316858]
[1747490362522,0.007,102730.0,102720.0,1.02863016]
[1747490363211,0.0375,102730.0,102720.0,1.02863016]
[1747490364320,0.0676,102730.0,102720.0,1.09565572]
[1747490364621,0.0676,102730.0,102720.0,1.15753989]
[1747490366322,0.0676,102730.0,102720.0,0.95994753]
[1747490366516,0.0988,102730.0,102720.0,1.15753989]
[1747490366717,0.0988,102730.0,102720.0,1.30059171]
[1747490368409,0.0988,102730.0,102720.0,1.07315171]
[1747490368623,0.293419,102730.0,102720.0,1.05912668]
[1747490368824,0.293419,102730.0,102720.0,1.25562668]
[1747490369018,0.293419,102730.0,102720.0,1.35438286]
[1747490369726,0.293419,102730.0,102720.0,1.02822668]
[1747490369922,0.293419,102730.0,102720.0,1.35438286]
[1747490370627,0.293419,102730.0,102720.0,1.25558668]
[1747490370825,0.293419,102730.0,102720.0,1.35438286]
[1747490373621,0.293419,102730.0,102720.0,1.38598286]
[1747490374024,0.293419,102730.0,102720.0,1.28718668]
[1747490374224,0.293419,102730.0,102720.0,1.38598286]
[1747490374928,0.0988,102730.0,102720.0,1.38598286]
[1747490375228,0.0988,102730.0,102720.0,1.4902212]